Cogmind - Beta 16 @@@ ROGUE MODE // 2026.01.22 @ 17:21:30 Player: applejuice Result: Destroyed by G-47 Trooper with Particle Gun Performance ------------- Evolutions (2) 1000 Regions Visited (4) 800 Robots Destroyed (62) 310 Value Destroyed (1627) 1627 Prototype IDs (3) 60 Alien Tech Used (0) 0 Bonus (0) 0 TOTAL SCORE: 3797 Bonus ------- None Cogmind --------- Core Integrity 0/550 Matter 157/300 Energy 96/100 System Corruption 10% Temperature Cool (27) Movement Core (50) Location -8/Storage Parts ------- > --- POWER (1) -------- (None) > --- PROPULSION (4) --- (None) > --- UTILITY (3) ------ Improved Terrain Scanner > --- WEAPON (3) ------- (None) > --- INVENTORY (5) ---- Hover Unit Heat Sink Signal Interpreter Advanced Targeting Computer ECM Suite Peak State ------------ > --- POWER ------------ Light Nuclear Core > --- PROPULSION ------- Carbon-fiber Leg Carbon-fiber Leg Carbon-fiber Leg VSS Leg > --- UTILITY ---------- Large Storage Unit Advanced Targeting Computer Advanced Targeting Computer > --- WEAPON ----------- Improved Assault Rifle Gauss Rifle Gauss Rifle > --- INVENTORY -------- Ion Engine Light Ion Engine Aluminum Leg Aluminum Leg Aluminum Leg Carbon-fiber Leg Heat Sink Signal Interpreter Advanced Targeting Computer Advanced Targeting Computer Advanced Targeting Computer ECM Suite Particle Cannon Rocket Launcher Heavy Hammer [Rating: 35] Favorites ----------- Power Light Nuclear Core Engine Ion Engine Power Core Light Nuclear Core Propulsion Aluminum Leg Leg Aluminum Leg Hover Unit Hover Unit Utility Large Storage Unit Device Seismic Detector Storage Large Storage Unit Processor Advanced Targeting Computer Weapon Gauss Rifle Energy Gun Medium Laser Energy Cannon Particle Cannon Ballistic Gun Gauss Rifle Launcher Rocket Launcher Impact Weapon Heavy Hammer Build | -11 -10 -9 -8 -8 ------- Run | Yrd Mat Mat Mat Sto Slots Evolved 4 | . . 2 2 . Power . | . . . . . Propulsion 2 | . . 1 1 . Utility 1 | . . 1 . . Weapon 1 | . . . 1 . Parts Attached 50 | 7 1 12 17 13 Power 6 | 1 . 1 1 3 Engine 3 | 1 . . . 2 Core 3 | . . 1 1 1 Reactor . | . . . . . Propulsion 17 | 2 . 3 7 5 Treads . | . . . . . Leg 14 | 2 . 3 7 2 Wheel . | . . . . . Hover 3 | . . . . 3 Flight . | . . . . . Utility 11 | 2 1 1 4 3 Device 4 | 1 . 1 1 1 Storage 2 | 1 1 . . . Processor 5 | . . . 3 2 Hackware . | . . . . . Protection . | . . . . . Artifact . | . . . . . Weapon 16 | 2 . 7 5 2 Energy Gun 5 | 1 . 2 1 1 Energy Cannon 2 | . . 2 . . Ballistic Gun 5 | 1 . 1 2 1 Ballistic Cannon . | . . . . . Launcher 2 | . . 2 . . Special Weapon . | . . . . . Impact Weapon 2 | . . . 2 . Slashing Weapon . | . . . . . Piercing Weapon . | . . . . . Special Melee Weapon . | . . . . . Unidentified Prototypes 3 | . . 2 . 1 Parts Lost 28 | . . 1 3 24 Power 5 | . . . 1 4 Propulsion 12 | . . 1 . 11 Utility 3 | . . . 1 2 Weapon 8 | . . . 1 7 Highest Loss Streak 23 | . . 1 2 23 To Critical Strikes 1 | . . . . 1 Average Backups 11 | 2 6 10 14 10 Power 1 | . 1 1 2 1 Propulsion 4 | 1 2 4 5 2 Utility 2 | . . . 3 5 Weapon 2 | . 2 3 2 2 Tool/Special . | . . . . . Unused Backups 8 | . . 2 4 2 Power . | . . . . . Propulsion 3 | . . . 3 . Utility 4 | . . 1 1 2 Weapon 1 | . . 1 . . Tool/Special . | . . . . . Average Slot Usage (%) 86 | . 87 82 98 69 Engine 3 | . 14 3 . 2 Core 6 | . . 7 8 2 Leg 30 | . 27 29 34 24 Device 8 | . 14 11 7 . Storage 9 | . 14 11 9 7 Processor 6 | . . . 10 12 Energy Gun 3 | . 2 5 2 1 Energy Cannon 1 | . . 2 1 1 Ballistic Gun 15 | . 14 8 19 16 Impact Weapon 1 | . . . 3 . Peak Build Rating 35 | 7 7 15 35 35 Average Rating 18 | 5 6 10 27 22 On Entrance 12 | . 7 6 13 35 Avg Prop Armor Cover (%) . | . . . . . Naked Turns 46 | . . . . 46 Heaviest Build 37 | 15 28 34 37 36 Greatest Support 57 | 20 20 30 57 57 Greatest Overweight (x) 4 | 2 4 1 1 2 Average Overweight (x) . | . . . . . Largest Inventory Capacity 15 | 8 15 15 15 15 Average Capacity 13 | 7 12 15 15 12 Most Carried 15 | 4 7 15 15 15 Average Carried 11 | 2 6 10 14 10 Final Capacity 15 | 8 15 15 15 5 Final Carried 15 | 4 7 15 15 5 Class Distribution -------------------- 34% | Scavenger-Mutant 33% | Scavenger-Gunner 32% | Mutant Dominant Class ---------------- Mutant | -10/Materials Scavenger-Mutant | -9/Materials Scavenger-Gunner | -8/Materials Scavenger-Gunner | -8/Storage Resources | -11 -10 -9 -8 -8 ----------- Run | Yrd Mat Mat Mat Sto Matter Collected 1570 | 297 31 250 506 486 Remotely . | . . . . . Salvage Created 2065 | 126 64 342 566 967 Parts 127 | 10 6 29 32 50 Haulers Intercepted 1 | . . . . 1 Recyclers Shooed . | . . . . . Parts Field Recycled . | . . . . . Retrieved Matter . | . . . . . Parts Self-Destructed . | . . . . . Prevented . | . . . . . Parts Restored . | . . . . . Kills | -11 -10 -9 -8 -8 ------- Run | Yrd Mat Mat Mat Sto Combat Hostiles Destroyed 42 | . 4 15 8 15 Guns 31 | . 4 6 7 14 Cannons 2 | . . 1 1 . AOE 9 | . . 8 . 1 Classes Destroyed 13 | 2 1 2 4 4 Worker 2 | . . . 2 . Builder 4 | . . . 1 3 Tunneler 5 | 4 . 1 . . Hauler 1 | . . . . 1 Recycler 4 | 1 . . . 3 Operator 1 | . . . . 1 Watcher 3 | . . 1 2 . Swarmer 14 | . 4 8 . 2 Grunt 12 | . . 7 . 5 Brawler 1 | . . . . 1 Duelist 1 | . . . . 1 Sentry 9 | . . . 5 4 Hunter 5 | . . . 3 2 Best Kill Streak 15 | 5 2 6 4 15 Combat Bots Only 8 | . 2 5 2 8 Max Kills in Single Turn 4 | 1 1 4 1 2 Gunslinging . | . . . . . Exploded 3 | . . 3 . 1 Melee . | . . . . . Uniques/NPCs Destroyed . | . . . . . Combat | -11 -10 -9 -8 -8 -------- Run | Yrd Mat Mat Mat Sto Hostile Shots Fired 332 | . 18 60 57 197 Missed 93 | . 3 22 13 55 Hits 239 | . 15 38 44 142 Melee 5 | . . . . 5 Projectile 234 | . 15 38 44 137 Critical Strikes 9 | . . . 1 8 Damage Taken 3131 | . 120 372 575 2064 Core 652 | . . 89 41 522 Absorbed by Shields . | . . . . . Core Remaining (%) 92 | 100 100 77 . . Volleys Fired 123 | 9 12 27 31 44 Largest 3 | 2 1 2 3 3 Hottest 119 | 70 20 91 119 102 Shots Fired 276 | 18 12 44 79 123 Gun 262 | 18 12 35 76 121 Cannon 4 | . . 2 2 . Launcher 10 | . . 7 1 2 Special . | . . . . . Kinetic 225 | 9 12 19 66 119 Thermal 41 | 9 . 18 12 2 Explosive 10 | . . 7 1 2 Electromagnetic . | . . . . . Robot Hit Streak 25 | 8 6 13 20 25 Robot Miss Streak 4 | 1 1 2 4 2 Penetration Max 1 | . . . 1 1 Secondary Targets 4 | . . . 1 3 Max Gunslinging Chain 1 | . . . 1 1 Shots Hit Robots 206 | 14 9 25 63 95 Core Hits 96 | 6 4 27 20 39 Critical Kills 1 | . . . . 1 Critical Parts Destroyed 6 | . . . 3 3 Critical Strikes 8 | . . 1 3 4 Burn 1 | . . 1 . . Destroy 6 | . . . 2 4 Smash 1 | . . . 1 . Melee Attacks 21 | . . . 20 1 Impact 21 | . . . 20 1 Slashing . | . . . . . Piercing . | . . . . . Sneak Attacks 3 | . . . 3 . Combat Hostiles . | . . . . . Follow-up Attacks . | . . . . . Damage Inflicted 4840 | 175 116 1021 1359 2169 Guns 3226 | 175 116 271 868 1796 Cannons 81 | . . 41 40 . Explosions 1082 | . . 709 . 373 Melee 451 | . . . 451 . Ramming . | . . . . . Kinetic 2863 | 89 116 121 780 1757 Thermal 444 | 86 . 191 128 39 Explosive 1082 | . . 709 . 373 Electromagnetic . | . . . . . Impact 451 | . . . 451 . Slashing . | . . . . . Piercing . | . . . . . Highest Corruption 10 | . . . . 10 Average Corruption 9 | . . . . 9 Corruption Purged . | . . . . . Corruption Blocked . | . . . . . Effects 8 | . . . . 8 Message Errors 1 | . . . . 1 Matter Fused 2 | . . . . 2 Heat Flow Errors 1 | . . . . 1 Energy Discharges 2 | . . . . 2 Parts Rejected 1 | . . . . 1 Misdirections 1 | . . . . 1 Overload Shots . | . . . . . Overflow Damage 193 | . . 3 190 . Projectiles . | . . . . . Explosions 3 | . . 3 . . Melee 190 | . . . 190 . Knockbacks 3 | . . . 3 . Impact 3 | . . . 3 . Kinetic . | . . . . . Secondary . | . . . . . Self-Inflicted Damage 23 | . . . . 23 Shots 1 | . . . . 1 Rammed . | . . . . . Targets Rammed . | . . . . . Kicked . | . . . . . Crushed . | . . . . . Highest Temperature 109 | 81 . 54 15 109 Average Temperature 26 | 41 . 25 7 27 Received Heat Transfer 957 | . . 111 99 747 Siege Activations . | . . . . . Martial Activations . | . . . . . Shielding Activations . | . . . . . Robots Disrupted . | . . . . . Combat Hostiles . | . . . . . Robots Corrupted 3 | . . . 3 . Combat Hostiles . | . . . . . Parts Fried 2 | . . . 2 . Impact Corruptions 8 | . . . 8 . Robots Melted . | . . . . . Combat Hostiles . | . . . . . Parts Melted . | . . . . . Heat Transferred 1258 | 259 . 592 333 74 Parts Sabotaged . | . . . . . Parts Stolen . | . . . . . Parts Stripped . | . . . . . Power Chain Reactions . | . . . . . Alert | -11 -10 -9 -8 -8 ------- Run | Yrd Mat Mat Mat Sto Maximum Alert Level 1 | . . 1 . 1 Low Security (%) 89 | 100 100 85 100 64 Level 1 10 | . . 14 . 35 Level 2 . | . . . . . Level 3 . | . . . . . Level 4 . | . . . . . Level 5 . | . . . . . High Security . | . . . . . Max Security . | . . . . . Peak Influence 320 | 20 85 270 72 320 Initial 46 | . . 27 46 5 Average 78 | 3 38 120 34 162 Influence Increases 1604 | 25 145 482 346 606 Destroy 0b10 Robot/C 840 | . 80 300 160 300 Destroy 0b10 Robot/NC 100 | 25 . 10 25 40 Destroy Leader 258 | . 20 52 84 102 Successful Hack 27 | . . 16 7 4 Disable Machine 105 | . . 30 30 45 Destroy Structure 109 | . . 44 25 40 Lose Combat Pursuer 165 | . 45 30 15 75 Influence Decreases 1412 | 25 80 437 443 427 Entered New Map 110 | . . 38 64 8 Time Decay 872 | 25 80 239 349 179 Lost Part 280 | . . 10 30 240 Purge Threat 150 | . . 150 . . Squads Dispatched 8 | . . 2 . 6 Investigation 2 | . . 1 . 1 Extermination . | . . . . . Reinforcement 3 | . . 1 . 2 Assault . | . . . . . Garrison 3 | . . . . 3 Intercept . | . . . . . Searches Triggered . | . . . . . Construction Impeded 1 | . . . . 1 Haulers Reinforced . | . . . . . Active Scanning Responses . | . . . . . Cargo Convoy Interrupts . | . . . . . Stealth | -11 -10 -9 -8 -8 --------- Run | Yrd Mat Mat Mat Sto Distress Signals 6 | . . 1 1 4 Communications Jammed . | . . . . . Distress Signals . | . . . . . Times Spotted 80 | . 7 24 17 32 Peak Tracking Total 9 | . 3 5 4 9 Tactical Retreats 9 | . 2 2 1 4 Traps | -11 -10 -9 -8 -8 ------- Run | Yrd Mat Mat Mat Sto Traps Triggered 1 | . 1 . . . Indirectly . | . . . . . Trap Hack Attempts . | . . . . . Triggered . | . . . . . Disarmed . | . . . . . Reprogrammed . | . . . . . Reused . | . . . . . Traps Extracted . | . . . . . Installed . | . . . . . Triggered . | . . . . . Machines | -11 -10 -9 -8 -8 ---------- Run | Yrd Mat Mat Mat Sto Machines Disabled 7 | . . 2 2 3 Max in Single Turn 2 | . . 1 1 2 Garrison Access 1 | . . . 1 . Machines Repaired . | . . . . . Machines Dismantled . | . . . . . Machines Sabotaged . | . . . . . Overloaded Fab Kills . | . . . . . Hacking | -11 -10 -9 -8 -8 --------- Run | Yrd Mat Mat Mat Sto Machines Accessed 15 | . 1 4 8 2 Terminals 13 | . 1 4 6 2 Fabricators . | . . . . . Repair Stations . | . . . . . Recycling Units . | . . . . . Scanalyzers 1 | . . . 1 . Garrison Access 1 | . . . 1 . Total Hacks 40 | . 2 13 22 3 Successful 16 | . 1 4 10 1 Failed 24 | . 1 9 12 2 Catastrophic 5 | . . 2 3 . Database Lockouts . | . . . . . Manual 26 | . 2 8 14 2 Terminals 34 | . 2 13 16 3 Fabricators . | . . . . . Repair Stations . | . . . . . Recycling Units . | . . . . . Scanalyzers 5 | . . . 5 . Garrison Access 1 | . . . 1 . Terminal Hacks 4 | . . 2 1 1 Open Door 1 | . . . . 1 Emergency Access Points 1 | . . 1 . . Terminal Index 1 | . . . 1 . Unreport Threat 1 | . . 1 . . Fabricator Hacks . | . . . . . Repair Station Hacks . | . . . . . Recycling Unit Hacks . | . . . . . Scanalyzer 5 | . . . 5 . Retrieve Study 5 | . . . 5 . Garrison Access Hacks 1 | . . . 1 . Seal Access 1 | . . . 1 . Unauthorized Hacks 6 | . 1 2 3 . Terminals 6 | . 1 2 3 . Botnet 6 | . 1 2 3 . Fabricators . | . . . . . Repair Stations . | . . . . . Recycling Units . | . . . . . Scanalyzers . | . . . . . Garrison Access . | . . . . . Data Cores Recovered 1 | . . . . 1 Used . | . . . . . Hacking Detections 11 | . 1 3 6 1 Full Trace Events 2 | . . 1 . 1 Feedback Events . | . . . . . Feedback Blocked . | . . . . . Robot Schematics Acquired . | . . . . . Robots Built . | . . . . . Authchips . | . . . . . Time . | . . . . . Total Robot Build Rating . | . . . . . Part Schematics Acquired . | . . . . . Parts Built . | . . . . . Authchips . | . . . . . Time . | . . . . . Total Part Build Rating . | . . . . . Part Studies Acquired 5 | . . . 5 . Parts Repaired . | . . . . . Time . | . . . . . Parts Recycled . | . . . . . Recycled Matter . | . . . . . Retrieved Matter . | . . . . . Retrieved Components . | . . . . . Parts Scanalyzed . | . . . . . Part Schematics Acquired . | . . . . . Parts Damaged . | . . . . . Bothacking | -11 -10 -9 -8 -8 ------------ Run | Yrd Mat Mat Mat Sto Used RIF Installer . | . . . . . Robots Hacked . | . . . . . Non-combat . | . . . . . Combat . | . . . . . Robot Hacks Applied . | . . . . . Relay Couplers Released . | . . . . . Fabnet Peak Effective % . | . . . . . Robots Rewired . | . . . . . Allies Hacked . | . . . . . Hacks Repelled . | . . . . . Allies | -11 -10 -9 -8 -8 -------- Run | Yrd Mat Mat Mat Sto Total Allies . | . . . . . Largest Group . | . . . . . Highest-Rated Group . | . . . . . Highest-Rated Ally . | . . . . . Total Orders . | . . . . . Ally Attacks . | . . . . . Total Damage . | . . . . . Kills . | . . . . . Allies Corrupted . | . . . . . Allies Melted . | . . . . . Intel | -11 -10 -9 -8 -8 ------- Run | Yrd Mat Mat Mat Sto Active Infowar (turns) 924 | 19 240 560 91 14 Terrain 14 | . . . . 14 Seismic 872 | 19 240 560 53 . ECM 38 | . . . 38 . Robot Analysis Total . | . . . . . Derelict Logs Recovered . | . . . . . Drone Launches . | . . . . . Drone Recoveries . | . . . . . Exploration | -11 -10 -9 -8 -8 ------------- Run | Yrd Mat Mat Mat Sto Turns Passed 2079 | 125 240 560 789 365 Spaces Moved 1163 | 72 99 270 495 227 Core 124 | 8 1 . . 115 Treads . | . . . . . Legs 1017 | 64 98 270 495 90 Wheels . | . . . . . Hover 22 | . . . . 22 Flight . | . . . . . Fastest Speed 50 | 50 120 120 101 50 Average Speed 116 | 116 155 150 107 80 Slowest Speed 260 | 150 250 190 190 260 Overloaded Moves . | . . . . . Propulsion Burnouts . | . . . . . Robots Hopped . | . . . . . Potential Cave-ins . | . . . . . Cave-ins Triggered . | . . . . . Exploration Rate (%) 34 | 4 26 38 40 64 Regions Visited 4 Branch Regions 1 Pre-discovered Areas . | . . . . . Known Exits Taken . | . . . . . Unknown Exits Taken 4 | 1 1 1 1 . Scrap Searched . | . . . . . Spaces Dug 11 | . . . 11 . Terrain Destroyed 120 | . . 52 22 46 Melee 11 | . . . 11 . Projectile 2 | . . . . 2 AOE 106 | . . 52 11 43 Terrain Rammed . | . . . . . Walls Destroyed . | . . . . . Machines Disabled . | . . . . . Actions | -11 -10 -9 -8 -8 --------- Run | Yrd Mat Mat Mat Sto Total 1594 | 92 172 377 643 310 Wait 166 | . 55 46 54 11 Move 1159 | 71 98 269 494 227 Hop . | . . . . . Pick Up 23 | 5 3 8 7 . Fast Attach 29 | 6 2 7 3 11 Attach 20 | 1 . 3 4 12 Detach 8 | . . 5 1 2 Swap 26 | . 1 6 19 . Drop 19 | . 1 6 10 2 Fire 123 | 9 12 27 31 44 Melee 21 | . . . 20 1 Ram . | . . . . . Kick . | . . . . . Crush . | . . . . . Escape Stasis . | . . . . . Rewire . | . . . . . Trap . | . . . . . Miscellaneous . | . . . . . Route ------- -11/Scrapyard -10/Materials (discovered 2 exits: *Mat / [*Min]) -9/Materials -8/Materials (discovered 2 exits: *Sto x2) -8/Storage History --------- Turn | Location | Event 5 | -11/Scrapyard | Discovered new exit (range 15) 126 | -11/Scrapyard | Entered Materials 126 | -10/Materials | Discovered new exit (range 7) 314 | -10/Materials | Build established: Mutant 355 | -10/Materials | Discovered new exit (range 4) 366 | -10/Materials | Entered another Materials area 366 | -9/Materials | Evolved 2 slots: Propulsion x1, Utility x1 822 | -9/Materials | Build established: Scavenger-Mutant 890 | -9/Materials | Discovered new exit (range 16) 926 | -9/Materials | Entered another Materials area 926 | -8/Materials | Evolved 2 slots: Propulsion x1, Weapon x1 1045 | -8/Materials | Discovered new exit (range 10) 1076 | -8/Materials | Discovered new exit (range 16) 1216 | -8/Materials | Build established: Scavenger-Gunner 1715 | -8/Materials | Entered Storage 1756 | -8/Storage | Garrison activated, responded to threat 1883 | -8/Storage | System corruption reached 10% 1933 | -8/Storage | Destroyed 8 combat bots 1975 | -8/Storage | Core integrity fell below 50% 2004 | -8/Storage | Released all parts (3) 2008 | -8/Storage | Core integrity fell below 20% 2058 | -8/Storage | Lost 23 parts (3p11n2u7w) 2080 | -8/Storage | Destroyed by G-47 Trooper with Particle Gun Last Messages --------------- 01977_ Particle Cannon destroyed. 01977_ Critical hit (Burn: +37). 01986_ System corrupted: Matter fused (-9). 01991_ Hvy. Assault Rifle destroyed. 01994_ Y-45 Defender destroyed. 01995_ Rocket Launcher destroyed. 01997_ Hvy. Laser destroyed. 01998_ K-01 Serf collects debris. 02002_ Imp. Aluminum Leg destroyed. 02004_ System corrupted: Great Maul rejected. 02004_ Released Lrg. Storage Unit. 02004_ Released Adv. Targeting Computer. 02012_ Acquired Hover Unit. 02019_ ,KEN9JOXWESURJEGDT=P KO7RH 02023_ Hover Unit destroyed. 02049_ System corrupted: Heat flow error (+140). 02049_ K-01 Serf cleans the Compression Vault. 02066_ Acquired Imp. Terrain Scanner. 02080_ Critical hit (Burn: +37). Map ----- +----------------------------------------------------+ | | | | | | | | | | | | | | | | | | | | | | | | | | | | | | | | | | | | | ????????????????????????????????#########? | | ????????????????????????????????# #? | | ????????????????????????????????# !! #? | | ???##########?????????????????### !! #? | | ???# ????????????#???# + ! ## | | ???# ???????????????# # # | | ???# g ####+##+#???#### ##+####### | | ???# g @ #???# | | ????????######## #???# ##### | | ???????????????# ##### #???# | | ???????????????# #???# | | ???????????????#+##+### #???# | | ???????????????# # ##+###### | | ???????????????# + + = # | | ???????????????# # # """ + | | ???????????????# # # "R #/### | | ????????????? ?# + # """ # + | | ???????????????# ###### # ?# # | | ???????????????########????# ##+####?# # | | ???????????????????????????? ???????# # | | ???????????????????????????? ??????# # | | ???????????????????????????? ?????# # | | ???????????????????????????? ?????# + | | ???????????????????????????? #????##### | | ???????????????????????????? ?????????? | | ???????????????????????????? ?????????? | | ?????????????????????????????#?????????? | | ???????????????????????????????????????# | | ??????????????????????????????? ???????# | | ???????????????????##????????#?+???????### | | ???????????????????+%!??????? ? ?????? | | ????????????????????! ????? ?????? | +----------------------------------------------------+ Best States ------------- Heat Dissipation 41 Energy Generation 15 Energy Capacity 250 Matter Stores 300 Matter Capacity 300 Sight Range 16 Terrain Scan Range 16 Terrain Scan Density 10 ECM Strength 1 Evasion (%) 55 Targeting Accuracy 16 Item Schematics ----------------- None Robot Schematics ------------------ None Fabricated ------------ Nothing Repaired ---------- Nothing Studied --------- Aluminum Leg | -8/Materials | Hacked Carbon-fiber Leg | -8/Materials | Hacked Hvy. Hammer | -8/Materials | Hacked Lgt. Nuclear Core | -8/Materials | Hacked Com. Wheel | -8/Materials | Hacked Alien Tech Used ----------------- None Achievements -------------- Deductive Reasoning Challenges ------------ None Game ------ Seed ScanControlRedirector Manual? 0 Play Time 00:30:04 Cumulative 27.1 hours Start 2026.01.22 @ 16:52:40 End 2026.01.22 @ 17:21:30 Sessions 1 Manual Loads 0 Difficulty Rogue Special Mode None Game No. 31 Rogue 31 Adventurer 0 Explorer 0 Win Type - Total 0 Types 0/0/0/0/0/0/0/0/0/0 Lore% 24 Gallery% 27 Achievement% 24 Wizard Run 0 Options --------- Layout 1 ASCII 0 Keyboard 1 Movement Numpad Keybinds 0 Fullscreen 1 Font 24/Smallcaps Map View 50x35 Zoom Use 0% Tactical HUD 1 Map Filters NONE Filters NONE Steam 1 RUN: 4bcd38f5-d5ae-4f36-aea3-94fe246b4850